[Event "DFMMLV 2017"]
[Site "Braunfels"]
[Date "2017.06.17"]
[Round "4"]
[White "Hielscher, Ursula"]
[Black "Bakalarz, Grazyna"]
[Result "1/2-1/2"]
[ECO "D94"]
[WhiteElo "1835"]
[BlackElo "1946"]
[Annotator "NA RC"]
[PlyCount "132"]
[EventDate "2017.??.??"]
[EventType "team-tourn"]
[EventCountry "GER"]
[SourceTitle "playchess.com"]
[Source "ChessBase"]
[SourceQuality "1"]
[TimeControl "40/5400+30:1800+30"]

{[%evp 11,131,-2,12,0,32767,32767,32767,32767,-29,-51,-27,32767,32767,32767,32767,32767,32767,32767,32767,32767,32767,32767,32767,32767,32767,32767,-2,-5,32767,-2,0,0,32767,-10,32767,32767,290,320,32767,32767,32767,32767,32767,32767,32767,32767,32767,32767,32767,32767,32767,338,32767,32767,32767,32767,32767,442,32767,32767,520,575,513,875,32767,12839,487,32767,32767,32767,549,12842,684,858,631,32767,12842,1402,12845,32767,32767,32767,32767,4614,32767,908,12848,12843,12846,5391,848,12846,1751,12818,5081,4627,12843,2502,12843,12843,1836,5927,12845,12846,1775,1460,12846,12839,32767,172,32767,32767,32767,125,32767,210,0,160,210,0,168,0]} 1. d4 {[%emt 0:00:00]} Nf6 {[%emt 0:00:04]} 2. c4 {[%emt 0:00:00]} g6 {[%emt 0:00:04]} 3. Nc3 {[%emt 0:00:00]} d5 4. e3 {[%emt 0:00:20]} Bg7 {[%emt 0:00:33]} 5. Nf3 {[%emt 0:00:23]} O-O {[%emt 0:01:23]} 6. Bd3 {[%emt 0:01:03]} dxc4 {[%emt 0:02:02]} 7. Bxc4 {[%emt 0:00:06]} c5 {[%emt 0:00:26]} 8. O-O {[%emt 0:00:36]} cxd4 {[%emt 0:00:51]} 9. Nxd4 {[%emt 0:03:46]} a6 {[%emt 0:07:36]} 10. h3 {[%emt 0:10:50] D94: Grünfeld: 4 Nf3 Bg7 5 e3} (10. a4 Qc7 11. b3 Nbd7 12. Bb2 Nb6 13. Bd3 Rd8 14. Rc1 e5 15. Nf3 Qe7 16. Qc2 Bg4 17. a5 Nbd5 18. Nxd5 Rxd5 {½-½ (27) Reinderman,D (2584)-Ernst,S (2535) Amsterdam 2016}) 10... Qc7 {[%emt 0:03:14]} 11. Bb3 {[%emt 0:07:35]} e5 {[%emt 0:03:02]} 12. Nf3 {[%emt 0:04:06]} Nc6 {[%emt 0:08:03]} 13. e4 $146 {[%emt 0:06:47]} ({Predecessor:} 13. Qe2 b5 14. Rd1 Bb7 15. Nd5 Nxd5 16. Bxd5 Nb4 17. Bxb7 Qxb7 {1-0 (49) Ruiz Ruiz,V (2035)-Bartucevic Sanchez,D (2083) Santiago de Chile 2007}) 13... Rd8 {[%emt 0:05:57]} 14. Qe2 {[%emt 0:02:47]} Nd4 {[%emt 0:09:18]} 15. Nxd4 {[%emt 0:00:29]} exd4 {[%emt 0:00:23]} 16. Nd5 {[%emt 0:01:27]} Nxd5 {[%emt 0:02:35]} 17. Bxd5 {[%emt 0:00:45]} Bd7 {[%emt 0:07:40]} 18. Bg5 {[%emt 0:02:14]} Re8 {[%emt 0:06:45]} 19. Rac1 {[%emt 0:02:11]} Qa5 {[%emt 0:07:50]} 20. Qf3 {[%emt 0:05:37]} Be6 {[%emt 0:01:11]} 21. b4 {[%emt 0:05:00]} Qxb4 {[%emt 0:01:49]} 22. Rb1 {[%emt 0:05:42]} Qa5 {[%emt 0:01:07]} 23. Rxb7 {[%emt 0:00:50]} Bxd5 $2 {[%emt 0:01:30]} (23... Rab8 $16 {is a better defense.} 24. Rxf7 Bxd5 25. exd5 Qb6) 24. exd5 {[%emt 0:00:24]} f5 {[%emt 0:11:30]} 25. d6 {[%emt 0:04:21]} Qe5 {[%emt 0:11:53]} 26. Qb3+ {[%emt 0:05:09]} Kh8 {[%emt 0:01:38]} 27. d7 {[%emt 0:03:10]} Rf8 {[%emt 0:00:42]} 28. d8=Q {[%emt 0:08:02]} Raxd8 {[%emt 0:00:02]} 29. Bxd8 {[%emt 0:00:10]} Rxd8 {[%emt 0:00:04]} 30. Rb1 {[%emt 0:01:29]} h5 {[%emt 0:04:04]} 31. Rb8 {[%emt 0:00:40]} Rxb8 {[%emt 0:00:45]} 32. Qxb8+ {[%emt 0:00:06]} Kh7 {[%emt 0:00:14]} 33. Qxe5 {[%emt 0:01:21]} Bxe5 {[%emt 0:00:01]} 34. Kf1 {[%emt 0:01:37]} Kh6 {[%emt 0:01:48]} 35. Rb6 {[%emt 0:01:32]} d3 {[%emt 0:00:51]} 36. Rxa6 {[%emt 0:00:46]} Kg5 {[%emt 0:00:24]} 37. g3 {[%emt 0:02:36]} f4 {[%emt 0:00:39]} 38. Ra5 {[%emt 0:01:04]} Kf6 {[%emt 0:00:02]} 39. Rd5 {[%emt 0:01:57]} fxg3 {[%emt 0:00:44]} 40. fxg3 {[%emt 0:00:15]} Bxg3 {[%emt 0:30:25]} 41. Rxd3 {[%emt 0:30:10]} Bc7 {[%emt 0:01:14]} 42. a4 {[%emt 0:01:35]} Ke6 {[%emt 0:00:00]} 43. Ke2 {[%emt 0:00:00]} g5 {[%emt 0:00:00]} 44. Kf3 {[%emt 0:00:00]} Ba5 {[%emt 0:00:00]} 45. Rb3 {[%emt 0:00:00]} Bd2 {[%emt 0:00:00]} 46. Rb5 {[%emt 0:00:00]} Kd6 {[%emt 0:00:00]} 47. Ke4 {[%emt 0:00:00]} Kc6 {[%emt 0:00:00]} 48. Rd5 {[%emt 0:00:00]} Bc1 {[%emt 0:00:00]} 49. a5 {[%emt 0:00:00]} Bf4 {[%emt 0:00:00]} 50. Rf5 {[%emt 0:00:00]} Bd2 {[%emt 0:00:00]} 51. Kd3 {[%emt 0:00:00]} Bc1 {[%emt 0:00:00]} 52. Kc4 {[%emt 0:00:00]} Bd2 {[%emt 0:00:00]} 53. Rf6+ {[%emt 0:00:00]} Kb7 {[%emt 0:00:00]} 54. Kb5 {[%emt 0:00:00]} (54. a6+ $142 Ka7 55. Kb5) 54... Be3 {[%emt 0:00:00]} 55. Rf7+ {[%emt 0:00:00]} Kb8 {[%emt 0:00:00]} 56. Kc6 {[%emt 0:00:00]} Bd2 {[%emt 0:00:00]} 57. a6 {[%emt 0:00:00]} Be3 {[%emt 0:00:00]} 58. Re7 {[%emt 0:00:00]} Bf2 {[%emt 0:00:00]} 59. Re5 {[%emt 0:00:00]} g4 {[%emt 0:00:00]} 60. Rxh5 $2 {[%emt 0:00:00]} (60. Rb5+ Ka8 61. Rxh5 gxh3 62. Rh8+ Ka7 63. Rxh3) 60... gxh3 {[%emt 0:00:00]} 61. Rxh3 {[%emt 0:00:00]} Bg1 {[%emt 0:00:00]} 62. Rb3+ {[%emt 0:02:00]} Ka7 {[%emt 0:00:00]} 63. Rb7+ {[%emt 0:01:14]} Ka8 {[%emt 0:00:00]} 64. Rg7 {[%emt 0:01:01]} Bf2 {[%emt 0:00:00]} 65. Kb5 {[%emt 0:02:40]} Bd4 $18 {[%emt 0:00:00]} 66. Rd7 {[%emt 0:03:02]} Bf2 {[%emt 0:00:00]} 1/2-1/2

[Event "DFMMLV 2017"]
[Site "Braunfels"]
[Date "2017.06.17"]
[Round "4"]
[White "Hartmann, Cora"]
[Black "Rempel, Yana"]
[Result "0-1"]
[ECO "B27"]
[WhiteElo "1788"]
[BlackElo "2059"]
[Annotator "NA RC"]
[PlyCount "74"]
[EventDate "2017.??.??"]
[EventType "team-tourn"]
[EventCountry "GER"]
[SourceTitle "playchess.com"]
[Source "ChessBase"]
[SourceQuality "1"]
[TimeControl "40/5400+30:1800+30"]

1. e4 {[%emt 0:00:00]} c5 {[%emt 0:00:34]} 2. Nf3 {[%emt 0:00:00]} g6 {[%emt 0:00:05]} 3. d3 {[%emt 0:00:00]} Bg7 {[%emt 0:00:22]} 4. g3 {[%emt 0:00:00]} Nc6 {[%emt 0:00:49]} 5. Bg2 {[%emt 0:00:00]} e6 {[%emt 0:00:48]} 6. O-O {[%emt 0:00:10]} Nge7 {[%emt 0:00:17]} 7. Nbd2 {[%emt 0:00:38]} O-O {[%emt 0:00:48]} 8. Re1 {[%emt 0:00:32]} d6 {[%emt 0:04:50]} 9. Nf1 {[%emt 0:01:37]} e5 {[%emt 0:04:54] A04: Unusual lines after 1 Nf3 and King's Indian Attack} 10. h4 {[%emt 0:09:26] LiveBook: 4 Games} f5 {[%emt 0:11:08]} 11. c3 {[%emt 0:15:36]} h6 {[%emt 0:06:09]} 12. N3h2 {[%emt 0:06:51]} Qe8 $146 {[%emt 0:04:19]} ({Predecessor:} 12... f4 13. Bf3 Bd7 14. Bg4 Be8 15. Nf3 Kh8 16. N1h2 d5 17. Qe2 fxg3 18. fxg3 {0-1 (30) Ivanov,A (2481)-Motylev,A (2705) Dagomys 2010}) 13. Ne3 {[%emt 0:07:14]} Qf7 {[%emt 0:06:07]} 14. Rf1 {[%emt 0:02:52]} f4 {[%emt 0:10:59]} 15. Nc4 {[%emt 0:03:42]} Qe6 {[%emt 0:01:06]} 16. h5 {[%emt 0:11:11]} b5 {[%emt 0:01:53]} 17. Nd2 {[%emt 0:00:48]} Bd7 {[%emt 0:07:44]} 18. g4 {[%emt 0:02:59]} (18. Kh1 $15) 18... Qf7 {[%emt 0:07:02]} 19. Bf3 {[%emt 0:03:31]} Nd8 {[%emt 0:01:06]} 20. c4 {[%emt 0:08:33]} Ne6 {[%emt 0:01:22]} 21. cxb5 {[%emt 0:02:43]} Bxb5 {[%emt 0:00:11]} 22. Nc4 {[%emt 0:01:09]} Rad8 {[%emt 0:00:09]} 23. Bd2 {[%emt 0:03:13]} Nd4 {[%emt 0:01:37]} 24. b3 {[%emt 0:01:18]} Qf6 {[%emt 0:09:31]} 25. Bc3 {[%emt 0:03:17]} Nxf3+ {[%emt 0:01:09]} 26. Nxf3 {[%emt 0:01:57]} Bd7 {[%emt 0:02:06]} 27. Nh2 {[%emt 0:01:17]} gxh5 {[%emt 0:01:54]} 28. gxh5 {[%emt 0:00:12]} f3 {[%emt 0:02:28]} 29. Kh1 {[%emt 0:03:42]} Bh3 {[%emt 0:00:59]} 30. Rg1 {[%emt 0:00:45]} Qh4 {[%emt 0:03:45]} 31. Qd2 {[%emt 0:00:40]} Qxh5 {[%emt 0:00:50]} 32. Rg3 {[%emt 0:00:37]} Bg2+ {[%emt 0:00:41]} 33. Kg1 {[%emt 0:00:31]} Ng6 {[%emt 0:02:12]} 34. Ne3 {[%emt 0:00:13]} Nf4 {[%emt 0:01:28]} 35. Nxg2 {[%emt 0:00:19]} Ne2+ {[%emt 0:00:18]} ({Don't take} 35... Nxg2 36. Rf1 $17) 36. Kf1 {[%emt 0:00:57]} Nxg3+ {[%emt 0:01:16]} 37. fxg3 {[%emt 0:00:20]} Qxh2 $19 {[%emt 0:00:20]} 0-1

[Event "DFMMLV 2017"]
[Site "Braunfels"]
[Date "2017.06.17"]
[Round "4"]
[White "Antczak, Lena"]
[Black "Lukas, Anne"]
[Result "0-1"]
[ECO "B23"]
[WhiteElo "1754"]
[BlackElo "1870"]
[Annotator "NA"]
[PlyCount "66"]
[EventDate "2017.??.??"]
[EventType "team-tourn"]
[EventCountry "GER"]
[SourceTitle "playchess.com"]
[Source "ChessBase"]
[SourceQuality "1"]
[TimeControl "40/5400+30:1800+30"]

1. e4 {[%emt 0:00:00]} c5 {[%emt 0:00:09]} 2. Nc3 {[%emt 0:00:00]} Nc6 {[%emt 0:00:08]} 3. f4 {[%emt 0:00:00]} g6 {[%emt 0:00:04]} 4. Nf3 {[%emt 0:00:00]} Bg7 {[%emt 0:00:04]} 5. g3 {[%emt 0:00:00]} d6 {[%emt 0:00:04]} 6. Bg2 {[%emt 0:00:00]} e6 {[%emt 0:00:04]} 7. d3 {[%emt 0:00:03]} Nge7 {[%emt 0:00:04]} 8. O-O {[%emt 0:00:07]} O-O {[%emt 0:00:03]} 9. Ne2 {[%emt 0:00:16]} d5 {[%emt 0:00:23] B25: Closed Sicilian: 3 g3, lines without early Be3} (9... b6 10. c3 Ba6 11. Rb1 Qd7 12. b4 Nd8 13. Be3 Rc8 14. a4 f5 15. b5 Bb7 16. Nd2 Nf7 17. Qb3 fxe4 18. dxe4 d5 {½-½ (55) Cori Tello,J (2549)-Hamitevici,V (2467) Tromsoe 2014}) 10. e5 d4 {[%emt 0:01:59]} 11. g4 {[%emt 0:01:03]} Rb8 $146 {[%emt 0:01:20]} ({Predecessor:} 11... f6 12. exf6 Bxf6 13. Ng3 Nd5 14. Qe2 Qc7 15. Ng5 Bxg5 16. fxg5 Rxf1+ 17. Qxf1 {½-½ (66) Kaulfuss,H (2214)-Rapoport,V (2271) Germany 2008}) 12. Ng3 {[%emt 0:04:16]} Qc7 {[%emt 0:07:00]} 13. Ne4 {[%emt 0:11:10]} Nd5 14. Qe1 f6 {[%emt 0:06:46]} 15. exf6 {[%emt 0:01:13]} Nxf6 {[%emt 0:03:29]} 16. Nxc5 {[%emt 0:13:17]} Qe7 {[%emt 0:07:35]} 17. Nb3 {[%emt 0:20:11]} Nxg4 {[%emt 0:03:56]} 18. Qh4 {[%emt 0:00:33]} Qxh4 {[%emt 0:00:17]} 19. Nxh4 {[%emt 0:07:51] [#]} Nb4 $1 {[%emt 0:05:43]} 20. h3 {[%emt 0:01:38]} Ne3 {[%emt 0:00:05]} 21. Bxe3 {[%emt 0:09:21]} dxe3 22. Nf3 $19 {[%emt 0:00:30]} (22. Rae1 $142) 22... Bxb2 {[%emt 0:09:38]} 23. Rab1 {[%emt 0:00:30]} Bc3 {[%emt 0:00:31]} 24. Nbd4 {[%emt 0:02:00]} Nd5 {[%emt 0:08:34]} 25. Ne2 {[%emt 0:07:25]} Bg7 {[%emt 0:05:23]} 26. Ng5 {[%emt 0:05:32]} Nc3 27. Rbe1 Nxa2 {[%emt 0:04:41]} 28. Ne4 {[%emt 0:01:57]} Nb4 {[%emt 0:01:09]} 29. Rc1 {[%emt 0:01:32]} a5 {[%emt 0:04:44]} 30. c3 {[%emt 0:02:26]} Nxd3 {[%emt 0:05:13]} 31. Ra1 {[%emt 0:00:14]} b6 {[%emt 0:00:39]} 32. Rf3 {[%emt 0:00:33]} e5 {[%emt 0:01:16]} 33. Rxe3 {[%emt 0:04:06]} Nxf4 {[%emt 0:00:13]} 0-1

[Event "DFMMLV 2017"]
[Site "Braunfels"]
[Date "2017.06.17"]
[Round "4"]
[White "Landenberger, Anja Kathrin"]
[Black "Zpevakova, Katerina"]
[Result "1-0"]
[ECO "A48"]
[WhiteElo "1544"]
[BlackElo "1912"]
[Annotator "NA"]
[PlyCount "61"]
[EventDate "2017.??.??"]
[EventType "team-tourn"]
[EventCountry "GER"]
[SourceTitle "playchess.com"]
[Source "ChessBase"]
[SourceQuality "1"]
[TimeControl "40/5400+30:1800+30"]

1. d4 {[%emt 0:02:02]} Nf6 {[%emt 0:00:11]} 2. Nf3 {[%emt 0:00:17]} g6 {[%emt 0:00:09]} 3. Bf4 {[%emt 0:00:19]} Bg7 {[%emt 0:00:57]} 4. e3 {[%emt 0:01:56]} d6 {[%emt 0:00:32]} (4... c5 $5) 5. h3 {[%emt 0:00:39]} c6 {[%emt 0:00:46]} 6. c3 {[%emt 0:00:23]} O-O {[%emt 0:00:20]} 7. Be2 {[%emt 0:03:24] A48: 1 d4 Nf6 2 Nf3 g6: Torre, London and Colle Systems} Nbd7 {[%emt 0:02:27]} (7... a5 8. a4 h6 9. Qb3 Kh7 10. O-O Na6 11. Nbd2 Nc7 12. c4 Na6 13. c5 Nh5 14. Bh2 dxc5 15. Bxa6 Rxa6 16. dxc5 {0-1 (16) Bouaziz,M (2259)-Petrisor,A (2405) Sliema 2014}) 8. Nbd2 {[%emt 0:01:07]} h6 {[%emt 0:04:34]} 9. O-O {[%emt 0:02:19]} Re8 {[%emt 0:10:52]} 10. Qb3 {[%emt 0:23:37]} Nb6 $146 {[%emt 0:21:55]} ({Black should try Predecessor:} 10... e5 $11 11. dxe5 Nxe5 (11... dxe5 12. Bh2 Nc5 13. Qd1 e4 14. Nd4 Ne6 15. Nxe6 Bxe6 {1-0 (44) Zhelev,M (1768)-Penov,L (2110) Primorsko 2016})) 11. a4 {[%emt 0:11:48]} Nbd5 {[%emt 0:13:58]} 12. Bh2 {[%emt 0:02:36]} Nh7 {[%emt 0:06:43]} 13. e4 {[%emt 0:10:44]} Nc7 {[%emt 0:01:18]} 14. e5 {[%emt 0:14:10]} d5 {[%emt 0:00:50]} 15. Qc2 {[%emt 0:01:26]} Bf5 {[%emt 0:01:28]} 16. Bd3 {[%emt 0:01:54]} Bxd3 {[%emt 0:01:05]} 17. Qxd3 {[%emt 0:00:04]} e6 {[%emt 0:00:33]} 18. Bf4 {[%emt 0:02:57]} Nf8 {[%emt 0:02:38]} 19. Nh2 {[%emt 0:06:11]} g5 {[%emt 0:07:27]} 20. Be3 {[%emt 0:00:28]} Ng6 {[%emt 0:08:42]} 21. f4 {[%emt 0:02:48]} gxf4 {[%emt 0:01:23]} 22. Bxf4 {[%emt 0:00:03]} Nxf4 {[%emt 0:01:26]} 23. Rxf4 {[%emt 0:00:02]} Rf8 {[%emt 0:00:34]} 24. Ng4 {[%emt 0:02:40]} Ne8 {[%emt 0:04:35]} 25. Raf1 {[%emt 0:00:31]} f5 {[%emt 0:01:04]} 26. exf6 {[%emt 0:01:19]} Nxf6 {[%emt 0:00:29]} 27. Qg6 {[%emt 0:00:25]} Nd7 {[%emt 0:03:39]} 28. Nxh6+ {[%emt 0:00:50]} (28. Rf7 $142 Rxf7 29. Nxh6+ Kh8 30. Nxf7+ Kg8 31. Nxd8 Nf6 32. Rxf6 Kh8 {[#]} 33. Rf8+ $1 {[%mdl 512]} Bxf8 34. Nf7#) 28... Kh8 {[%emt 0:00:30]} 29. Nf7+ {[%emt 0:01:09]} Rxf7 {[%emt 0:01:52]} 30. Rxf7 $18 {[%emt 0:00:13]} Qg8 {[%emt 0:00:18]} 31. Qh5+ {[%emt 0:00:08]} 1-0

[Event "DFMMLV 2017"]
[Site "Braunfels"]
[Date "2017.06.18"]
[Round "5"]
[White "Ambartsumova, Karina"]
[Black "Flach, Helene"]
[Result "1-0"]
[ECO "D02"]
[WhiteElo "2318"]
[BlackElo "1870"]
[Annotator "ChessBase"]
[PlyCount "59"]
[EventDate "2017.??.??"]
[EventType "team-tourn"]
[EventCountry "GER"]
[SourceTitle "playchess.com"]
[Source "ChessBase"]
[SourceQuality "1"]
[TimeControl "40/5400+30:1800+30"]

1. d4 {[%emt 0:00:00]} d5 {[%emt 0:00:06]} 2. Nf3 {[%emt 0:00:21]} Nf6 {[%emt 0:00:15]} 3. Bf4 {[%emt 0:00:36]} e6 {[%emt 0:00:45]} 4. e3 {[%emt 0:01:11]} c5 {[%emt 0:01:34]} 5. c3 {[%emt 0:01:49]} Nc6 {[%emt 0:00:56]} 6. Nbd2 {[%emt 0:00:34]} Bd7 {[%emt 0:01:42]} 7. Bd3 {[%emt 0:02:33]} Be7 {[%emt 0:04:18]} 8. O-O {[%emt 0:01:46]} O-O {[%emt 0:04:29]} 9. Ne5 {[%emt 0:03:27]} Be8 {[%emt 0:06:56]} 10. Qf3 {[%emt 0:08:02]} Nd7 {[%emt 0:05:29]} 11. Nxc6 {[%emt 0:14:48]} bxc6 {[%emt 0:00:14]} 12. e4 {[%emt 0:00:09]} Bg5 {[%emt 0:09:50]} 13. e5 {[%emt 0:05:49]} Bxf4 {[%emt 0:02:52]} 14. Qxf4 {[%emt 0:00:01]} f5 {[%emt 0:02:08]} 15. dxc5 {[%emt 0:08:56]} Nxc5 {[%emt 0:01:07]} 16. Bc2 {[%emt 0:00:05]} Bh5 {[%emt 0:04:42]} 17. Rfe1 {[%emt 0:04:19]} Nd7 {[%emt 0:04:38]} 18. b4 {[%emt 0:07:47]} Qe7 {[%emt 0:04:37]} 19. Nb3 {[%emt 0:02:59]} Rfc8 {[%emt 0:01:37]} 20. Bd3 {[%emt 0:07:47]} Rc7 {[%emt 0:02:28]} 21. Rac1 {[%emt 0:06:52]} Rd8 {[%emt 0:05:46]} 22. a3 {[%emt 0:02:51]} c5 {[%emt 0:01:47]} 23. Bb5 {[%emt 0:00:31]} c4 {[%emt 0:03:27]} 24. Nd4 {[%emt 0:01:14]} Nb8 {[%emt 0:00:43]} 25. Nxe6 {[%emt 0:02:44]} Qxe6 {[%emt 0:02:57]} 26. Qg5 {[%emt 0:00:01]} Rf8 {[%emt 0:01:25]} 27. Qxh5 {[%emt 0:00:13]} f4 {[%emt 0:04:28]} 28. Qf3 {[%emt 0:01:55]} Rcf7 {[%emt 0:03:20]} 29. Rcd1 {[%emt 0:00:17]} Rd8 {[%emt 0:00:30]} 30. Bxc4 {[%emt 0:00:20]} 1-0

[Event "DFMMLV 2017"]
[Site "Braunfels"]
[Date "2017.06.18"]
[Round "5"]
[White "Belenkaya, Dina"]
[Black "Barpiyeva, Gulsana"]
[Result "1-0"]
[ECO "B51"]
[WhiteElo "2306"]
[BlackElo "2109"]
[Annotator "ChessBase"]
[PlyCount "47"]
[EventDate "2017.??.??"]
[EventType "team-tourn"]
[EventCountry "GER"]
[SourceTitle "playchess.com"]
[Source "ChessBase"]
[SourceQuality "1"]
[TimeControl "40/5400+30:1800+30"]

1. e4 {[%emt 0:01:42]} c5 {[%emt 0:00:09]} 2. Nf3 {[%emt 0:00:05]} d6 {[%emt 0:00:07]} 3. Bb5+ {[%emt 0:00:08]} Nd7 {[%emt 0:00:14]} 4. O-O {[%emt 0:00:14]} a6 {[%emt 0:00:24]} 5. Bd3 {[%emt 0:00:10]} Ngf6 {[%emt 0:00:17]} 6. c3 {[%emt 0:00:26]} g6 {[%emt 0:01:27]} 7. Bc2 {[%emt 0:10:14]} Bg7 {[%emt 0:00:36]} 8. d4 {[%emt 0:01:10]} O-O {[%emt 0:01:30]} 9. Qe2 {[%emt 0:01:59]} e5 {[%emt 0:09:47]} 10. dxe5 {[%emt 0:03:16]} dxe5 {[%emt 0:00:09]} 11. a4 {[%emt 0:03:04]} b6 {[%emt 0:01:00]} 12. Na3 {[%emt 0:04:13]} Qc7 {[%emt 0:03:28]} 13. Nc4 {[%emt 0:01:24]} Bb7 {[%emt 0:02:19]} 14. Rd1 {[%emt 0:01:02]} Rfd8 {[%emt 0:14:47]} 15. Nd6 Nf8 {[%emt 0:06:04]} 16. Nxb7 {[%emt 0:16:12]} Qxb7 {[%emt 0:06:30]} 17. Nxe5 {[%emt 0:01:39]} Nxe4 {[%emt 0:02:26]} 18. Bf4 {[%emt 0:12:45]} Nf6 {[%emt 0:11:27]} 19. Bb3 {[%emt 0:05:16]} Nd5 {[%emt 0:05:10]} 20. Qf3 {[%emt 0:03:36]} Ne6 {[%emt 0:18:23]} 21. Rxd5 {[%emt 0:02:21]} Qc8 {[%emt 0:07:19]} 22. Rxd8+ {[%emt 0:06:42]} Nxd8 {[%emt 0:00:22]} 23. Rd1 {[%emt 0:03:26]} Bf6 {[%emt 0:03:03]} 24. Nd7 {[%emt 0:01:37]} 1-0

[Event "DFMMLV 2017"]
[Site "Braunfels"]
[Date "2017.06.18"]
[Round "5"]
[White "Imnadze, Nato"]
[Black "Frank, Tena"]
[Result "1/2-1/2"]
[ECO "B23"]
[WhiteElo "2283"]
[BlackElo "1982"]
[Annotator "ChessBase"]
[PlyCount "93"]
[EventDate "2017.??.??"]
[EventType "team-tourn"]
[EventCountry "GER"]
[SourceTitle "playchess.com"]
[Source "ChessBase"]
[SourceQuality "1"]
[TimeControl "40/5400+30:1800+30"]

1. e4 {[%emt 0:00:00]} c5 {[%emt 0:00:04]} 2. Nc3 {[%emt 0:00:06]} e6 {[%emt 0:00:54]} 3. g3 {[%emt 0:00:06]} g6 {[%emt 0:01:15]} 4. Bg2 {[%emt 0:00:06]} Bg7 {[%emt 0:00:06]} 5. d3 {[%emt 0:00:06]} d6 {[%emt 0:01:50]} 6. Be3 {[%emt 0:00:12]} Ne7 {[%emt 0:02:37]} 7. Qd2 {[%emt 0:01:18]} O-O {[%emt 0:00:36]} 8. Bh6 {[%emt 0:01:34]} Nbc6 {[%emt 0:00:35]} 9. h4 {[%emt 0:00:40]} f6 {[%emt 0:06:03]} 10. Bxg7 {[%emt 0:03:01]} Kxg7 {[%emt 0:00:09]} 11. Nge2 {[%emt 0:00:52]} h6 {[%emt 0:10:42]} 12. d4 {[%emt 0:06:42]} cxd4 {[%emt 0:04:30]} 13. Nxd4 {[%emt 0:01:24]} d5 {[%emt 0:04:09]} 14. Nxe6+ {[%emt 0:21:11]} Bxe6 {[%emt 0:00:37]} 15. exd5 {[%emt 0:00:07]} Nxd5 {[%emt 0:08:53]} 16. Bxd5 {[%emt 0:11:52]} Bxd5 {[%emt 0:04:31]} 17. Nxd5 {[%emt 0:00:52]} Re8+ {[%emt 0:00:48]} 18. Ne3 {[%emt 0:01:54]} Qxd2+ {[%emt 0:09:33]} 19. Kxd2 {[%emt 0:00:31]} Rad8+ {[%emt 0:07:35]} 20. Ke2 {[%emt 0:04:30]} Nd4+ {[%emt 0:00:37]} 21. Kf1 {[%emt 0:00:31]} h5 {[%emt 0:05:28]} 22. Kg2 {[%emt 0:02:13]} Rc8 {[%emt 0:09:55]} 23. c3 {[%emt 0:01:56]} Nc6 {[%emt 0:00:13]} 24. Rad1 {[%emt 0:04:15]} Re7 {[%emt 0:01:33]} 25. Rd6 {[%emt 0:02:38]} Ne5 {[%emt 0:00:56]} 26. Re1 {[%emt 0:02:17]} Rc6 {[%emt 0:04:32]} 27. Rd4 {[%emt 0:03:50]} Kf7 {[%emt 0:02:20]} 28. Nd5 {[%emt 0:01:53]} Re8 {[%emt 0:04:28]} 29. b3 {[%emt 0:09:52]} b5 {[%emt 0:04:54]} 30. f4 {[%emt 0:03:34]} Nd7 {[%emt 0:02:45]} 31. Rde4 {[%emt 0:02:26]} Rxe4 {[%emt 0:01:10]} 32. Rxe4 {[%emt 0:00:02]} Rd6 {[%emt 0:00:59]} 33. Rd4 {[%emt 0:01:22]} Rc6 {[%emt 0:01:12]} 34. Nb4 {[%emt 0:02:13]} Rc7 {[%emt 0:00:09]} 35. Na6 {[%emt 0:00:55]} Rb7 {[%emt 0:00:04]} 36. Kf2 {[%emt 0:00:13]} Ke6 {[%emt 0:00:15]} 37. Rxd7 {[%emt 0:00:50]} Rxd7 {[%emt 0:00:15]} 38. Nc5+ {[%emt 0:00:05]} Kd6 {[%emt 0:00:09]} 39. Nxd7 {[%emt 0:00:06]} Kxd7 {[%emt 0:00:05]} 40. Ke3 {[%emt 0:00:14]} Kd6 {[%emt 0:31:13]} 41. Kd4 {[%emt 0:30:24]} Ke6 {[%emt 0:00:26]} 42. c4 {[%emt 0:00:40]} bxc4 {[%emt 0:00:41]} 43. bxc4 {[%emt 0:00:05]} Kd6 {[%emt 0:00:18]} 44. c5+ {[%emt 0:00:21]} Kc6 {[%emt 0:00:10]} 45. Kc4 {[%emt 0:00:05]} a5 {[%emt 0:01:52]} 46. a4 {[%emt 0:01:43]} f5 {[%emt 0:00:19]} 47. Kd4 {[%emt 0:00:04] Kd5+} 1/2-1/2

[Event "DFMMLV 2017"]
[Site "Braunfels"]
[Date "2017.06.18"]
[Round "5"]
[White "Wiesner, Paula"]
[Black "Klek, Hanna Marie"]
[Result "0-1"]
[ECO "E46"]
[WhiteElo "2068"]
[BlackElo "2368"]
[Annotator "NA"]
[PlyCount "54"]
[EventDate "2017.??.??"]
[EventType "team-tourn"]
[EventCountry "GER"]
[SourceTitle "playchess.com"]
[Source "ChessBase"]
[SourceQuality "1"]
[TimeControl "40/5400+30:1800+30"]

{[%evp 18,54,3,0,0,-20,-1,-12,-5,0,-1,-15,33,16,35,-81,32767,-33,-45,-111,32767,-208,-239,-221,-261,-284,-265,-750,-777,-734,-813,-2187,-2374,-2908,-29988,-29996,-29997,-29998,-29996]} 1. d4 {[%emt 0:00:00]} Nf6 {[%emt 0:00:07]} 2. c4 {[%emt 0:00:00]} e6 {[%emt 0:00:06]} 3. Nc3 {[%emt 0:00:00]} Bb4 {[%emt 0:00:09]} 4. e3 {[%emt 0:00:02]} O-O {[%emt 0:00:11]} 5. Nge2 {[%emt 0:00:07]} Re8 {[%emt 0:00:20]} 6. a3 {[%emt 0:00:14]} Bf8 {[%emt 0:00:07]} 7. Ng3 {[%emt 0:01:46]} d5 {[%emt 0:02:08]} 8. cxd5 {[%emt 0:00:49] E46: Nimzo-Indian: Rubinstein: 4 e3 0-0 5 Ne2 without early Bd3} (8. Be2 b6 9. cxd5 exd5 10. b4 Bb7 11. O-O Nbd7 12. Qb3 c6 13. Bf3 a6 14. Rd1 b5 15. e4 Nb6 {0-1 (51) Gupta,A (2627)-Wei,Y (2725) Liaocheng 2017}) 8... exd5 {[%emt 0:00:07]} 9. Bd3 {[%emt 0:00:15]} a5 {[%emt 0:09:32]} 10. O-O {[%emt 0:02:21]} c6 {[%emt 0:06:35]} 11. f3 $146 {[%emt 0:05:03]} ({Predecessor:} 11. Qc2 h5 12. Bd2 h4 13. Nge2 Na6 14. h3 c5 15. Rad1 Bd7 16. Bf5 b6 17. Nc1 g6 18. Bxd7 Qxd7 {½-½ (18) Hovhannisyan,M (2460)-Saiboulatov,D (2360) Belgium 2008}) 11... Na6 {[%emt 0:01:41]} 12. Kh1 {[%emt 0:07:05]} Nc7 {[%emt 0:13:39]} 13. Bc2 {[%emt 0:08:59]} Ne6 {[%emt 0:01:57]} 14. Nce2 {[%emt 0:12:17]} g6 {[%emt 0:03:52]} 15. e4 {[%emt 0:04:27]} h5 {[%emt 0:05:49]} 16. Nf4 {[%emt 0:09:35]} (16. e5 $14 {stays ahead.}) 16... Nxf4 {[%emt 0:11:46]} 17. Bxf4 {[%emt 0:00:11]} h4 {[%emt 0:03:15]} 18. Ne2 {[%emt 0:02:21]} (18. e5 $1 $11 {remains equal.}) 18... h3 {[%emt 0:03:49]} 19. g3 $2 {[%emt 0:04:20]} (19. e5 $11 {and White stays safe.}) 19... dxe4 {[%emt 0:00:30]} 20. fxe4 {[%emt 0:02:13]} Nxe4 {[%emt 0:02:27]} 21. Bb3 {[%emt 0:05:09]} Be6 {[%emt 0:02:33]} 22. Be5 $2 {[%emt 0:02:07]} (22. Ng1) 22... Bd5 {[%emt 0:01:35]} 23. Kg1 {[%emt 0:00:35] [#]} Rxe5 $1 {[%emt 0:00:17]} 24. dxe5 {[%emt 0:00:55]} Bc5+ {[%emt 0:00:11]} 25. Nd4 {[%emt 0:00:19]} Bxb3 {[%emt 0:00:29]} 26. Qxb3 {[%emt 0:00:17]} Qxd4+ {[%emt 0:00:10]} 27. Kh1 {[%emt 0:00:15]} Nf2+ {[%emt 0:00:17]} 0-1